bitfinex-derivatives/quotes_BNBF0:USTF0_20250511
["timestamp","ask_amount","ask_price","bid_price","bid_amount"]
[1746973898527,1.95105089,653.49,651.41,0.25861672]
[1746973898732,1.95105089,653.49,651.4,1.13928423]
[1746973898932,1.95105089,653.48,651.29,1.13928423]
[1746973899533,1.95105089,653.48,651.28,0.25873865]
[1746973899733,1.95105089,653.48,651.3,1.39940264]
[1746973899935,1.95105089,653.48,651.31,1.14088943]
[1746973900130,1.95105089,653.48,651.32,0.25849934]
[1746973900330,1.95105089,653.48,651.33,0.25849934]
[1746973900535,1.95105089,653.48,651.34,0.25849934]
[1746973900736,1.95105089,653.48,651.35,1.39938877]
[1746973900933,1.95105089,653.37,651.36,1.39938877]
[1746973901135,1.95105089,653.37,651.37,1.39938877]
[1746973901336,1.95105089,653.37,651.38,0.25849934]
[1746973901633,1.95105089,653.37,651.39,1.14088943]
[1746973901837,1.95105089,653.37,651.4,0.25849934]
[1746973902037,1.95105089,653.37,651.41,1.14088943]
[1746973902239,1.95105089,653.37,651.41,0.25849934]
[1746973902441,1.95105089,653.37,651.28,0.25873865]
[1746973902638,1.95105089,653.37,651.29,0.25850647]
[1746973902941,1.95105089,653.37,651.3,0.25850647]
[1746973903437,1.95105089,653.37,651.31,0.25850647]
[1746973903635,0.60735665,653.54,651.32,0.25850647]
[1746973903834,0.60735665,653.54,651.33,0.25850647]
[1746973904037,0.60735665,653.54,651.34,0.25850647]
[1746973904338,0.60735665,653.54,651.35,0.25850647]
[1746973904534,0.60735665,653.54,651.28,0.25873865]
[1746973904939,0.60735665,653.54,651.29,0.25849114]
[1746973905242,0.60735665,653.54,651.28,0.25873865]
[1746973905539,0.60735665,653.54,651.3,0.25848734]
[1746973905739,0.60735665,653.54,651.29,0.25848734]
[1746973905941,0.60735665,653.54,651.28,0.25873865]
[1746973905942,0.60735665,653.54,651.31,0.25848734]
[1746973906441,0.60735665,653.54,651.32,0.25848734]
[1746973906836,0.60735665,653.54,651.33,0.25848734]
[1746973907040,0.60735665,653.54,651.34,0.25848734]
[1746973907537,0.60735665,653.54,651.35,0.25848734]
[1746973907734,0.60735665,653.54,651.36,0.25848734]
[1746973908036,0.60735665,653.54,651.37,0.25848734]
[1746973908741,0.60735665,653.54,651.38,0.25848734]
[1746973909744,0.60735665,653.54,651.39,0.25848734]
[1746973910044,0.60735665,653.54,651.4,0.25848734]
[1746973910345,0.60735665,653.54,651.41,0.25848734]
[1746973910641,0.60735665,653.54,651.42,0.25848734]
[1746973911146,0.60735665,653.54,651.43,0.25848734]
[1746973911345,0.60735665,653.54,651.44,0.25848734]
[1746973911646,0.60735665,653.54,651.45,0.25848734]
[1746973911843,0.60735665,653.54,651.46,0.25848734]
[1746973912146,0.60735665,653.54,651.47,0.25848734]
[1746973912447,0.60735665,653.54,651.28,0.25873865]
[1746973912648,0.60735665,653.54,651.29,0.2585256]
[1746973912947,0.60735665,653.54,651.3,0.2585256]
[1746973913246,0.60735665,653.54,651.31,0.2585256]
[1746973913447,0.60735665,653.54,651.32,0.2585256]
[1746973913647,0.60735665,653.54,651.33,0.2585256]
[1746973914147,0.60735665,653.54,651.34,0.2585256]
[1746973914341,0.60735665,653.54,651.35,0.2585256]
[1746973914847,0.60735665,653.54,651.36,0.2585256]
[1746973915748,0.60735665,653.54,651.37,0.2585256]
[1746973916142,0.60735665,653.54,651.38,0.2585256]
[1746973916443,0.60735665,653.54,651.39,0.2585256]
[1746973916749,0.60735665,653.54,651.29,0.2585256]
[1746973918052,1.95105089,653.45,651.29,0.2585256]
[1746973919754,0.60735665,653.54,651.28,0.25873865]
[1746973919952,0.60735665,653.54,651.3,0.25817914]
[1746973920753,0.60735665,653.54,651.29,0.25817914]
[1746973921555,0.60735665,653.54,651.3,0.25817914]
[1746973922157,0.60735665,653.54,651.31,0.25817914]
[1746973922657,0.60735665,653.54,651.32,0.25817914]
[1746973923159,0.60735665,653.54,651.33,0.25817914]
[1746973923458,0.60735665,653.54,651.34,0.25817914]
[1746973923759,0.60735665,653.54,651.35,0.25817914]
[1746973924168,0.60735665,653.54,651.36,0.25817914]
[1746973924359,0.60735665,653.54,651.28,0.25873865]
[1746973924360,0.60735665,653.54,651.37,0.25817914]
[1746973924656,0.60735665,653.54,651.38,0.25817914]
[1746973924954,0.60735665,653.54,651.39,0.25817914]
[1746973925260,0.60735665,653.54,651.4,0.25817914]
[1746973925554,0.60735665,653.54,651.41,0.25817914]
[1746973925758,0.60735665,653.54,651.42,0.25817914]
[1746973926157,0.60735665,653.54,651.43,0.25817914]
[1746973926658,0.60735665,653.54,651.44,0.25817914]
[1746973927360,0.60735665,653.54,651.45,0.25817914]
[1746973927961,0.60735665,653.54,651.46,0.25817914]
[1746973928561,0.60735665,653.54,651.47,0.25817914]
[1746973928861,0.60735665,653.54,651.48,0.25817914]
[1746973929257,0.60735665,653.54,651.49,0.25817914]
[1746973929473,0.60735665,653.54,651.5,0.25817914]
[1746973930062,0.60735665,653.54,651.51,0.25817914]
[1746973930565,0.60735665,653.54,651.52,0.25817914]
[1746973930864,0.60735665,653.54,651.53,0.25817914]
[1746973931362,0.60735665,653.54,651.54,0.25817914]
[1746973931757,0.60735665,653.54,651.55,0.25817914]
[1746973931964,0.60735665,653.54,651.56,0.25817914]
[1746973932264,0.60735665,653.54,651.57,0.25817914]
[1746973932564,0.60735665,653.54,651.58,0.25817914]
[1746973932859,0.60735665,653.54,651.59,0.25817914]
[1746973933163,0.60735665,653.54,651.6,0.25817914]
[1746973933463,0.60735665,653.54,651.61,0.25817914]
[1746973934065,0.60735665,653.54,651.62,0.25817914]
[1746973934466,0.60735665,653.54,651.63,0.25817914]
[1746973934765,0.60735665,653.54,651.64,0.25817914]
[1746973935262,0.60735665,653.54,651.65,0.25817914]
[1746973935666,0.60735665,653.54,651.28,0.25873865]
[1746973935667,0.60735665,653.54,651.66,0.25817914]
[1746973935967,0.60735665,653.54,651.67,0.25817914]
[1746973936264,0.60735665,653.54,651.29,0.25817914]
[1746973936466,0.60735665,653.54,651.3,0.25817914]
[1746973936768,0.60735665,653.54,651.31,0.25817914]
[1746973937268,0.60735665,653.54,651.32,0.25817914]
[1746973937467,0.60735665,653.54,651.33,0.25817914]
[1746973937669,0.60735665,653.54,651.34,0.25817914]
[1746973937963,0.60735665,653.54,651.35,0.25817914]
[1746973938469,0.60735665,653.54,651.36,0.25817914]
[1746973938767,0.60735665,653.54,651.37,0.25817914]
[1746973939163,0.60735665,653.54,651.38,0.25817914]
[1746973939470,0.60735665,653.54,651.39,0.25817914]
[1746973939863,0.60735665,653.54,651.4,0.25817914]
[1746973940166,0.60735665,653.54,651.41,0.25817914]
[1746973940468,0.60735665,653.54,651.42,0.25817914]
[1746973940768,0.60735665,653.54,651.43,0.25817914]
[1746973941167,0.60735665,653.54,651.44,0.25817914]
[1746973941468,0.60735665,653.54,651.34,0.26661048]
[1746973941469,0.60735665,653.54,651.45,0.25817914]
[1746973941669,0.60735665,653.54,651.34,0.26661048]
[1746973942069,0.60735665,653.54,651.35,0.257834]
[1746973942371,0.60735665,653.54,651.36,0.257834]
[1746973942669,0.60735665,653.54,651.37,0.257834]
[1746973942964,0.60735665,653.54,651.38,0.257834]
[1746973943269,0.60735665,653.54,651.39,0.257834]
[1746973943769,0.60735665,653.54,651.4,0.257834]
[1746973944269,0.60735665,653.54,651.41,0.257834]
[1746973944569,0.60735665,653.54,651.42,0.257834]
[1746973944966,0.60735665,653.54,651.43,0.257834]
[1746973945570,0.60735665,653.54,651.44,0.257834]
[1746973945870,0.60735665,653.54,651.45,0.257834]
[1746973946266,0.60735665,653.54,651.46,0.257834]
[1746973946672,0.60735665,653.54,651.47,0.257834]
[1746973946966,0.60735665,653.54,651.35,0.26659414]
[1746973946967,0.60735665,653.54,651.48,0.257834]
[1746973947271,0.60735665,653.54,651.49,0.257834]
[1746973947668,0.60735665,653.54,651.5,0.257834]
[1746973947967,0.60735665,653.54,651.51,0.257834]
[1746973948371,0.60735665,653.54,651.52,0.257834]
[1746973948673,0.60735665,653.54,651.53,0.257834]
[1746973949072,0.60735665,653.54,651.54,0.257834]
[1746973949573,0.60735665,653.54,651.55,0.257834]
[1746973949872,0.60735665,653.54,651.43,0.257834]
[1746973951472,0.60735665,653.54,651.42,0.26660742]
[1746973951973,0.60735665,653.54,651.43,0.2574161]
[1746973952470,0.60735665,653.54,651.44,0.2574161]
[1746973952670,0.60735665,653.54,651.45,0.2574161]
[1746973952975,0.60735665,653.54,651.46,0.2574161]
[1746973953477,0.60735665,653.54,651.47,0.2574161]
[1746973953776,0.60735665,653.54,651.48,0.2574161]
[1746973954075,0.60735665,653.54,651.49,0.2574161]
[1746973954478,0.60735665,653.54,651.5,0.2574161]
[1746973954874,0.60735665,653.54,651.51,0.2574161]
[1746973955075,0.60735665,653.54,651.52,0.2574161]
[1746973955480,0.60735665,653.54,651.53,0.2574161]
[1746973955875,0.60735665,653.54,651.54,0.2574161]
[1746973956175,0.60735665,653.54,651.55,0.2574161]
[1746973956375,0.60735665,653.54,651.56,0.2574161]
[1746973956674,0.60735665,653.54,651.57,0.2574161]
[1746973957079,0.60735665,653.54,651.58,0.2574161]
[1746973957379,0.60735665,653.54,651.59,0.2574161]
[1746973957981,0.60735665,653.54,651.6,0.2574161]
[1746973958379,0.60735665,653.54,651.61,0.2574161]
[1746973958680,0.60735665,653.54,651.62,0.2574161]
[1746973958980,0.60735665,653.54,651.45,0.26660946]
[1746973959174,0.60735665,653.54,651.46,0.25750769]
[1746973959481,0.60735665,653.54,651.47,0.25750769]
[1746973959877,0.60735665,653.54,651.48,0.25750769]
[1746973960081,0.60735665,653.54,651.49,0.25750769]
[1746973960680,0.60735665,653.54,651.5,0.25750769]
[1746973961475,0.60735665,653.54,651.51,0.25750769]
[1746973961678,0.60735665,653.54,651.52,0.25750769]
[1746973961979,0.60735665,653.54,651.53,0.25750769]
[1746973962282,0.60735665,653.54,651.54,0.25750769]
[1746973962681,0.60735665,653.54,651.55,0.25750769]
[1746973962983,0.60735665,653.54,651.56,0.25750769]
[1746973963178,0.60735665,653.54,651.47,0.26665747]
[1746973963585,0.60735665,653.54,651.48,0.25755999]
[1746973964178,0.60735665,653.54,651.49,0.25755999]
[1746973964683,0.60735665,653.54,651.5,0.25755999]
[1746973965083,0.60735665,653.54,651.51,0.25755999]
[1746973965479,0.60735665,653.54,651.52,0.25755999]
[1746973965779,0.60735665,653.54,651.53,0.25755999]
[1746973966084,0.60735665,653.54,651.54,0.25755999]
[1746973966380,0.60735665,653.54,651.55,0.25755999]
[1746973966780,0.60735665,653.54,651.56,0.25755999]
[1746973966984,0.60735665,653.54,651.57,0.25755999]
[1746973967384,0.60735665,653.54,651.58,0.25755999]
[1746973967586,0.60735665,653.54,651.59,0.25755999]
[1746973967885,0.60735665,653.54,651.6,0.25755999]
[1746973968286,0.60735665,653.54,651.61,0.25755999]
[1746973968687,0.60735665,653.54,651.62,0.25755999]
[1746973969286,0.60735665,653.54,651.63,0.25755999]
[1746973969589,0.60735665,653.54,651.64,0.25755999]
[1746973969886,0.60735665,653.54,651.65,0.25755999]
[1746973970288,0.60735665,653.54,651.66,0.25755999]
[1746973970485,0.60735665,653.54,651.67,0.25755999]
[1746973970888,0.60735665,653.54,651.68,0.25755999]
[1746973971188,0.60735665,653.54,651.69,0.25755999]
[1746973971488,0.60735665,653.54,651.7,0.25755999]
[1746973972084,0.60735665,653.54,651.71,0.25755999]
[1746973972384,0.60735665,653.54,651.72,0.25755999]
[1746973972889,0.60735665,653.54,651.73,0.25755999]
[1746973973391,0.60735665,653.54,651.74,0.25755999]
[1746973973583,0.60735665,653.54,651.75,0.25755999]
[1746973973785,0.60735665,653.54,651.76,0.25755999]
[1746973974088,0.60735665,653.54,651.77,0.25755999]
[1746973974284,0.60735665,653.54,651.78,0.25755999]
[1746973974588,0.60735665,653.54,651.79,0.25755999]
[1746973974789,0.60735665,653.54,651.8,0.25755999]
[1746973974982,0.60735665,653.54,651.81,0.25755999]
[1746973975288,0.60735665,653.54,651.62,0.26661661]
[1746973975289,0.60735665,653.54,651.82,0.25755999]
[1746973975488,0.60735665,653.54,651.83,0.25755999]
[1746973975789,0.60735665,653.54,651.84,0.25755999]
[1746973977091,0.60735665,653.54,651.85,0.25755999]
[1746973977394,0.60735665,653.54,651.86,0.25755999]
[1746973977791,0.60735665,653.54,651.63,0.25755999]
[1746973978193,0.60735665,653.54,651.64,0.25755999]
[1746973978492,0.60735665,653.54,651.65,0.25755999]
[1746973978694,0.60735665,653.54,651.28,0.25873865]
[1746973979093,0.60735665,653.54,651.29,0.52379535]
[1746973979594,0.60735665,653.54,651.3,0.25718078]
[1746973979990,0.60735665,653.54,651.31,0.25718078]
[1746973980395,0.60735665,653.54,651.32,0.25718078]
[1746973980695,0.60735665,653.54,651.33,0.25718078]
[1746973980994,0.60735665,653.54,651.34,0.25718078]
[1746973981295,0.60735665,653.54,651.3,0.25718078]
[1746973982396,0.60735665,653.54,651.29,0.52387197]
[1746973982596,0.60735665,653.54,651.31,0.25718078]
[1746973982797,0.60735665,653.54,651.3,0.25718078]
[1746973984793,0.60735665,653.54,651.28,0.25873865]
[1746973984996,0.60735665,653.54,651.29,0.26667484]
[1746973985196,0.60735665,653.54,651.29,0.52430818]
[1746973985399,0.60735665,653.54,651.3,0.25763334]
[1746973985595,0.60735665,653.54,651.31,0.25763334]
[1746973985897,0.60735665,653.54,651.32,0.25763334]
[1746973986300,0.60735665,653.54,651.33,0.25763334]
[1746973986599,0.60735665,653.54,651.34,0.25763334]
[1746973986795,0.60735665,653.54,651.35,0.25763334]
[1746973987101,0.60735665,653.54,651.36,0.25763334]
[1746973987301,0.60735665,653.54,651.37,0.25763334]
[1746973987603,0.60735665,653.54,651.38,0.25763334]
[1746973988001,0.60735665,653.54,651.39,0.25763334]
[1746973988301,0.60735665,653.54,651.4,0.25763334]
[1746973988601,0.60735665,653.54,651.41,0.25763334]
[1746973988903,0.60735665,653.54,651.42,0.25763334]
[1746973989595,0.60735665,653.54,651.28,0.25873865]
[1746973989596,0.60735665,653.54,651.43,0.25763334]
[1746973989997,0.60735665,653.54,651.28,0.25873865]
[1746973989998,0.60735665,653.54,651.44,0.25763334]
[1746973990303,0.60735665,653.54,651.45,0.25763334]
[1746973990600,0.60735665,653.54,651.46,0.25763334]
[1746973990901,0.60735665,653.54,651.47,0.25763334]
[1746973991201,0.60735665,653.54,651.48,0.25763334]
[1746973991501,0.60735665,653.54,651.49,0.25763334]
[1746973991702,0.60735665,653.54,651.5,0.25763334]
[1746973991999,0.60735665,653.54,651.51,0.25763334]
[1746973992304,0.60735665,653.54,651.52,0.25763334]
[1746973992803,0.60735665,653.54,651.53,0.25763334]
[1746973992996,0.60735665,653.54,651.54,0.25763334]
[1746973993301,0.60735665,653.54,651.55,0.25763334]
[1746973993598,0.60735665,653.54,651.56,0.25763334]
[1746973994005,0.60735665,653.54,651.57,0.25763334]
[1746973994303,0.60735665,653.54,651.58,0.25763334]
[1746973994599,0.60735665,653.54,651.59,0.25763334]
[1746973995305,0.60735665,653.54,651.6,0.25763334]
[1746973995611,0.60735665,653.54,651.61,0.25763334]
[1746973995908,0.60735665,653.54,651.62,0.25763334]
[1746973996211,0.60735665,653.54,651.28,0.25873865]
[1746973996608,0.60735665,653.54,651.29,0.25775179]
[1746973996905,0.60735665,653.54,651.3,0.25775179]
[1746973997309,0.60735665,653.54,651.31,0.25775179]
[1746973997806,0.60735665,653.54,651.32,0.25775179]
[1746973998110,0.60735665,653.54,651.29,0.26673923]
[1746973998111,0.60735665,653.54,651.33,0.25775179]
[1746973998311,0.60735665,653.54,651.34,0.25775179]
[1746973998610,0.60735665,653.54,651.35,0.25775179]
[1746973998909,0.60735665,653.54,651.36,0.25775179]
[1746973999312,0.60735665,653.54,651.37,0.25775179]
[1746973999607,0.60735665,653.54,651.38,0.25775179]
[1746973999911,0.60735665,653.54,651.39,0.25775179]
[1746974000113,0.60735665,653.54,651.32,0.26670448]
[1746974000410,0.60735665,653.54,651.33,0.25748485]
[1746974000711,0.60735665,653.54,651.34,0.25748485]
[1746974001012,0.60735665,653.54,651.35,0.25748485]
[1746974001313,0.60735665,653.54,651.36,0.25748485]
[1746974001612,0.60735665,653.54,651.37,0.25748485]
[1746974002008,0.60735665,653.54,651.38,0.25748485]
[1746974002315,0.60735665,653.54,651.39,0.25748485]
[1746974002615,0.60735665,653.54,651.4,0.25748485]
[1746974003010,0.60735665,653.54,651.41,0.25748485]
[1746974003414,0.60735665,653.54,651.42,0.25748485]
[1746974003716,0.60735665,653.54,651.43,0.25748485]
[1746974004017,0.60735665,653.54,651.44,0.25748485]
[1746974004217,0.60735665,653.54,651.45,0.25748485]
[1746974004817,0.60735665,653.54,651.46,0.25748485]
[1746974005220,0.60735665,653.54,651.33,0.25748485]
[1746974005412,0.6135722,651.92,651.34,0.25748485]
[1746974005815,0.6135722,651.92,651.35,0.25748485]
[1746974006119,0.6135722,651.92,651.36,0.25748485]
[1746974006519,0.6135722,651.92,651.37,0.25748485]
[1746974006822,0.6135722,651.92,651.38,0.25748485]
[1746974007118,0.6135722,651.92,651.39,0.25748485]
[1746974007723,0.6135722,651.92,651.4,0.25748485]
[1746974008422,0.6135722,651.92,651.33,0.25748485]
[1746974008623,0.6135722,651.92,651.34,0.25748485]
[1746974009022,0.6135722,651.92,651.35,0.25748485]
[1746974009423,0.6135722,651.92,651.36,0.25748485]
[1746974009823,0.6135722,651.92,651.32,0.26670448]
[1746974010022,0.6135722,651.92,651.33,0.25767249]
[1746974010525,0.6135722,651.92,651.34,0.25767249]
[1746974010825,0.6135722,651.92,651.35,0.25767249]
[1746974011225,0.6135722,651.92,651.36,0.25767249]
[1746974011825,0.6135722,651.92,651.37,0.25767249]
[1746974012227,0.6135722,651.92,651.38,0.25767249]
[1746974012525,0.6135722,651.92,651.39,0.25767249]
[1746974012828,0.6135722,651.92,651.4,0.25767249]
[1746974013127,0.6135722,651.92,651.41,0.25767249]
[1746974013426,0.6135722,651.92,651.42,0.25767249]
[1746974013726,0.6135722,651.92,651.43,0.25767249]
[1746974013927,0.6135722,651.92,651.34,0.26672696]
[1746974014421,0.6135722,651.92,651.35,0.25750674]
[1746974014823,0.6135722,651.92,651.36,0.25750674]
[1746974015334,0.6135722,651.92,651.37,0.25750674]
[1746974015624,0.6135722,651.92,651.38,0.25750674]
[1746974016029,0.6135722,651.92,651.28,0.25873865]
[1746974016228,0.6135722,651.92,651.39,0.25748112]
[1746974016529,0.6135722,651.92,651.4,0.25748112]
[1746974016930,0.6135722,651.92,651.41,0.25748112]
[1746974017122,0.6135722,651.92,651.42,0.25748112]
[1746974017630,0.6135722,651.92,651.43,0.25748112]
[1746974018131,0.6135722,651.92,651.44,0.25748112]
[1746974018425,0.6135722,651.92,651.45,0.25748112]
[1746974019030,0.6135722,651.92,651.46,0.25748112]
[1746974019225,0.6135722,651.92,651.38,0.26667995]
[1746974019425,0.6135722,651.92,651.39,0.25721715]
[1746974019826,0.6135722,651.92,651.4,0.25721715]
[1746974020130,0.6135722,651.92,651.41,0.25721715]
[1746974020527,0.6135722,651.92,651.42,0.25721715]
[1746974020726,0.6135722,651.92,651.43,0.25721715]
[1746974021030,0.6135722,651.92,651.44,0.25721715]
[1746974021230,0.6135722,651.92,651.45,0.25721715]
[1746974021631,0.6135722,651.92,651.46,0.25721715]
[1746974022132,0.6135722,651.92,651.47,0.25721715]
[1746974022432,0.6135722,651.92,651.48,0.25721715]
[1746974022834,0.6135722,651.92,651.49,0.25721715]
[1746974023132,0.6135722,651.92,651.5,0.25721715]
[1746974023634,0.6135722,651.92,651.51,0.25721715]
[1746974024131,0.6135722,651.92,651.52,0.25721715]
[1746974024931,0.6135722,651.92,651.53,0.25721715]
[1746974025329,0.6135722,651.92,651.54,0.25721715]
[1746974025728,0.6135722,651.92,651.55,0.25721715]
[1746974026028,0.6135722,651.92,651.56,0.25721715]
[1746974026231,0.6135722,651.92,651.57,0.25721715]
[1746974026628,0.6135722,651.92,651.58,1.40125476]
[1746974026932,0.6135722,651.92,651.59,0.25721715]
[1746974027133,0.6135722,651.92,651.6,1.14403761]
[1746974027334,0.6135722,651.92,651.6,1.40125476]
[1746974027629,0.6135722,651.92,651.61,0.25721715]
[1746974027831,0.6135722,651.92,651.62,1.14403761]
[1746974028033,0.6135722,651.92,651.62,1.40125476]
[1746974028335,0.6135722,651.92,651.63,0.25721715]
[1746974028534,0.6135722,651.92,651.63,1.40125476]
[1746974028735,0.6135722,651.92,651.64,0.25721715]
[1746974028931,0.6135722,651.92,651.65,1.14403761]
[1746974029134,0.6135722,651.92,651.65,1.40125476]
[1746974029335,0.6135722,651.92,651.66,1.14403761]
[1746974029534,0.6135722,651.92,651.66,1.40125476]
[1746974029839,0.6135722,651.92,651.67,1.40125476]
[1746974030137,0.6135722,651.92,651.68,0.25721715]
[1746974030435,0.6135722,651.92,651.69,1.14403761]
[1746974030936,0.6135722,651.92,651.7,0.25721715]
[1746974031231,0.6135722,651.92,651.71,1.14403761]
[1746974031836,0.6135722,651.92,651.72,0.25721715]
[1746974032038,0.6135722,651.92,651.73,1.14403761]
[1746974032333,0.6135722,651.92,651.74,0.25721715]
[1746974033138,0.6135722,651.92,650.81,0.25721715]
[1746974033334,0.6135722,651.92,650.82,1.14847708]
[1746974033540,0.6135722,651.92,650.83,1.14847708]
[1746974033732,0.6135722,651.92,650.84,1.14847708]
[1746974034040,0.6135722,651.92,650.85,1.14847708]
[1746974034238,0.6135722,651.92,650.86,1.14847708]
[1746974034439,0.6135722,651.92,650.87,1.14847708]
[1746974034837,0.6135722,651.92,650.88,1.14847708]
[1746974035140,0.6135722,651.92,650.89,1.40569423]
[1746974035638,0.6135722,651.92,650.9,0.25721715]
[1746974035837,0.6135722,651.92,650.9,1.40569423]
[1746974036038,0.6135722,651.92,650.91,1.40569423]
[1746974036239,0.6135722,651.92,650.92,1.40569423]
[1746974036743,0.6135722,651.92,650.93,1.40569423]
[1746974037043,0.6135722,651.92,650.94,0.25721715]
[1746974037341,0.6135722,651.92,650.95,1.40569423]
[1746974037544,0.6135722,651.92,650.96,1.14847708]
[1746974037744,0.6135722,651.92,650.97,1.40569423]
[1746974038043,0.6135722,651.92,650.98,0.25721715]
[1746974038242,0.6135722,651.92,650.98,1.40569423]
[1746974038537,0.6135722,651.92,650.99,1.40569423]
[1746974038739,0.6135722,651.92,651.0,0.25721715]
[1746974038942,0.6135722,651.92,651.01,1.14847708]
[1746974039142,0.6135722,651.92,651.02,1.14847708]
[1746974039342,0.6135722,651.92,651.03,1.14847708]
[1746974039542,0.6135722,651.92,651.03,0.25721715]
[1746974039743,0.6135722,651.92,651.04,0.25721715]
[1746974040145,0.6135722,651.92,651.05,0.25721715]
[1746974040446,0.6135722,651.92,650.94,0.26671572]
[1746974040746,0.6135722,651.92,650.95,0.25759124]
[1746974041247,0.6135722,651.92,650.96,0.25759124]
[1746974041647,0.6135722,651.92,650.97,0.25759124]
[1746974041843,0.6135722,651.92,650.98,0.25759124]
[1746974042243,0.6135722,651.92,650.99,0.25759124]
[1746974042441,0.6135722,651.92,651.0,0.25759124]
[1746974042645,0.6135722,651.92,651.01,0.25759124]
[1746974042946,0.6135722,651.92,650.95,0.2667515]
[1746974042947,0.6135722,651.92,651.02,0.25759124]
[1746974043247,0.6135722,651.92,651.03,0.25759124]
[1746974043546,0.6135722,651.92,651.04,0.25759124]
[1746974043944,0.6135722,651.92,651.05,0.25759124]
[1746974044246,0.6135722,651.92,651.06,0.25759124]
[1746974044747,0.6135722,651.92,651.07,0.25759124]
[1746974045447,0.6135722,651.92,651.08,0.25759124]
[1746974046048,0.6135722,651.92,651.09,0.25759124]
[1746974046548,0.6135722,651.92,651.1,0.25759124]
[1746974046748,0.6135722,651.92,651.11,0.25759124]
[1746974047243,0.6135722,651.92,651.12,0.25759124]
[1746974047844,0.6135722,651.92,651.13,0.25759124]
[1746974048048,0.6135722,651.92,651.14,0.25759124]
[1746974048348,0.6135722,651.92,651.15,0.25759124]
[1746974048748,0.6135722,651.92,651.16,0.25759124]
[1746974049148,0.6135722,651.92,651.17,0.25759124]
[1746974049450,0.6135722,651.92,651.18,0.25759124]
[1746974049848,0.6135722,651.92,651.19,0.25759124]
[1746974050345,0.6135722,651.92,651.2,0.25759124]
[1746974050750,0.6135722,651.92,651.21,0.25759124]
[1746974050946,0.6135722,651.92,651.22,0.25759124]
[1746974051349,0.6135722,651.92,651.23,0.25759124]
[1746974051851,0.6135722,651.92,651.24,0.25759124]
[1746974052152,0.6135722,651.92,651.25,0.25759124]
[1746974052452,0.6135722,651.92,651.26,0.25759124]
[1746974052848,0.6135722,651.92,651.27,0.25759124]
[1746974053353,0.6135722,651.92,651.28,0.25759124]
[1746974054154,0.6135722,651.92,651.29,0.25759124]
[1746974054548,0.6135722,651.92,651.3,0.25759124]
[1746974055055,0.6135722,651.92,651.31,0.25759124]
[1746974055247,0.6135722,651.92,651.32,0.25759124]
[1746974055553,0.6135722,651.92,651.33,0.25759124]
[1746974055953,0.6135722,651.92,651.34,0.25759124]
[1746974056350,0.6135722,651.92,651.35,0.25759124]
[1746974056555,0.6135722,651.92,651.36,0.25759124]
[1746974057153,0.6135722,651.92,651.37,0.25759124]
[1746974057553,0.6135722,651.92,651.38,0.25759124]
[1746974057950,0.6135722,651.92,651.39,0.25759124]
[1746974058254,0.6135722,651.92,651.4,0.25759124]
[1746974058756,0.6135722,651.92,651.41,0.25759124]
[1746974059456,0.6135722,651.92,650.71,0.25759124]
[1746974059754,0.6135722,651.92,650.72,0.25759124]
[1746974059954,0.6135722,651.92,650.72,0.52439386]
[1746974060155,0.6135722,651.92,650.73,0.25759124]
[1746974060553,0.6135722,651.92,650.72,0.26680262]
[1746974060750,0.6135722,651.92,650.73,0.25783409]
[1746974061054,0.6135722,651.92,650.74,0.25783409]
[1746974061752,0.6135722,651.92,650.75,0.25783409]
[1746974062057,0.6135722,651.92,650.76,0.25783409]
[1746974062356,0.6135722,651.92,650.77,0.25783409]
[1746974062851,0.6135722,651.92,650.78,0.25783409]
[1746974063058,0.6135722,651.92,650.79,0.25783409]
[1746974063357,0.6135722,651.92,650.8,0.25783409]
[1746974063656,0.6135722,651.92,650.81,0.25783409]
[1746974063955,0.6135722,651.92,650.82,0.25783409]
[1746974064257,0.6135722,651.92,650.83,0.96837379]
[1746974064556,0.6135722,651.92,650.83,1.22620788]
[1746974064856,0.6135722,651.92,650.84,0.25783409]
[1746974065156,0.6135722,651.92,650.85,0.25783409]
[1746974065455,0.6135722,651.92,650.86,0.25783409]
[1746974065755,0.6135722,651.92,650.87,0.25783409]
[1746974066056,0.6135722,651.92,650.88,0.25783409]
[1746974066356,0.6135722,651.92,650.83,0.96837379]
[1746974066357,0.6135722,651.92,650.89,0.25783409]
[1746974066656,0.6135722,651.92,650.9,0.25783409]
[1746974067054,0.6135722,651.92,650.91,0.25783409]
[1746974067358,0.6135722,651.92,650.92,0.25783409]
[1746974067758,0.6135722,651.92,650.93,0.25783409]
[1746974068058,0.6135722,651.92,650.94,0.25783409]
[1746974068860,0.6135722,651.92,650.95,0.25783409]
[1746974069261,0.6135722,651.92,650.96,0.25783409]
[1746974069562,0.6135722,651.92,650.97,0.25783409]
[1746974069964,0.6135722,651.92,650.98,0.25783409]
[1746974070259,0.6135722,651.92,650.99,0.25783409]
[1746974070459,0.6135722,651.92,651.0,0.25783409]
[1746974070863,0.6135722,651.92,650.82,0.2667791]
[1746974070864,0.6135722,651.92,651.01,0.25783409]
[1746974071264,0.6135722,651.92,651.02,0.25783409]
[1746974071563,0.6135722,651.92,651.03,0.25783409]
[1746974072059,0.6135722,651.92,650.82,1.23515289]
[1746974072060,0.6135722,651.92,651.04,0.25783409]
[1746974072260,0.6135722,651.92,651.05,0.25783409]